Cogmind - Beta 13 @@@ ROGUE MODE // 2024.03.22 @ 13:54:43 Player: most_lamentable Result: Self-destructed Performance ------------- Evolutions (2) 1000 Regions Visited (5) 1000 Robots Destroyed (6) 30 Value Destroyed (169) 169 Prototype IDs (23) 460 Alien Tech Used (0) 0 Bonus (300) 300 TOTAL SCORE: 2959 Bonus ------- Aligned with FarCom 300 Cogmind --------- Core Integrity 371/550 Matter 367/400 Energy 100/100 System Corruption 0% Temperature Cool (0) Movement Treading (160) Location -8/Materials Parts ------- > --- POWER (2) -------- (None) > --- PROPULSION (4) --- Light Treads Aluminum Leg > --- UTILITY (3) ------ Medium Storage Unit Medium Matter Pod > --- WEAPON (2) ------- (None) > --- INVENTORY (10) --- Fission Core Light Fission Core Compact Wheel Small Storage Unit Propulsion Shielding Peak State ------------ > --- POWER ------------ Light Ion Engine > --- PROPULSION ------- Aluminum Leg Aluminum Leg > --- UTILITY ---------- Medium Storage Unit Trap Reconfigurator > --- WEAPON ----------- Small Laser Assault Rifle > --- INVENTORY -------- Fission Core Light Fission Core Light Treads Light Treads Aluminum Leg Aluminum Leg Compact Wheel Small Storage Unit Propulsion Shielding Assault Rifle [Rating: 16] Favorites ----------- Power Light Ion Engine Engine Light Ion Engine Propulsion Aluminum Leg Treads Light Treads Leg Aluminum Leg Utility Medium Storage Unit Device Trap Reconfigurator Storage Medium Storage Unit Protection Propulsion Shielding Weapon Assault Rifle Energy Gun Small Laser Ballistic Gun Assault Rifle Build | -11 -10 -10 -10 -9 -8 ------- Run | Yrd Mat Min Exi Min Mat Slots Evolved 4 | . . . . . 4 Power 1 | . . . . . 1 Propulsion 2 | . . . . . 2 Utility 1 | . . . . . 1 Weapon . | . . . . . . Parts Attached 24 | 6 6 5 2 2 3 Power 2 | 1 . 1 . . . Engine 2 | 1 . 1 . . . Core . | . . . . . . Reactor . | . . . . . . Propulsion 14 | 2 4 4 . 2 2 Treads 6 | . 2 2 . . 2 Leg 8 | 2 2 2 . 2 . Wheel . | . . . . . . Hover . | . . . . . . Flight . | . . . . . . Utility 5 | 1 2 . 1 . 1 Device 1 | . . . 1 . . Storage 3 | 1 1 . . . 1 Processor . | . . . . . . Hackware . | . . . . . . Protection 1 | . 1 . . . . Artifact . | . . . . . . Weapon 3 | 2 . . 1 . . Energy Gun 1 | 1 . . . . . Energy Cannon . | . . . . . . Ballistic Gun 2 | 1 . . 1 . . Ballistic Cannon . | . . . . . . Launcher . | . . . . . . Special Weapon . | . . . . . . Impact Weapon . | . . . . . . Slashing Weapon . | . . . . . . Piercing Weapon . | . . . . . . Special Melee Weapon . | . . . . . . Unidentified Prototypes . | . . . . . . Parts Lost 8 | . . 1 . 5 2 Power 2 | . . 1 . 1 . Propulsion 3 | . . . . 2 1 Utility 1 | . . . . . 1 Weapon 2 | . . . . 2 . Highest Loss Streak 5 | . . 1 . 5 2 To Critical Strikes . | . . . . . . Average Slot Usage (%) 91 | . 90 99 100 88 53 Engine 12 | . 14 13 14 14 . Treads 3 | . 3 4 . . 17 Leg 24 | . 24 23 28 22 9 Device 6 | . . . 9 14 9 Storage 14 | . 14 14 14 14 18 Protection 5 | . 4 14 4 . . Energy Gun 12 | . 14 14 14 8 . Ballistic Gun 12 | . 14 14 14 14 . Naked Turns . | . . . . . . Heaviest Build 19 | 13 19 19 17 17 13 Greatest Support 40 | 20 40 40 20 20 40 Greatest Overweight (x) 1 | 1 . . . 1 . Average Overweight (x) . | . . . . . . Largest Inventory Capacity 10 | 8 10 10 10 10 10 Average Capacity 9 | 7 9 10 10 10 10 Most Carried 10 | 6 9 8 10 10 7 Average Carried 8 | 3 7 7 9 9 5 Final Capacity 10 | 8 10 10 10 10 10 Final Carried 10 | 6 8 8 10 8 5 Class Distribution -------------------- 100% | Mutant Dominant Class ---------------- Mutant | -10/Materials Mutant | -10/Mines Mutant | -10/Exiles Mutant | -9/Mines Mutant | -8/Materials Resources | -11 -10 -10 -10 -9 -8 ----------- Run | Yrd Mat Min Exi Min Mat Matter Collected 438 | 211 127 90 10 . . Remotely . | . . . . . . Salvage Created 217 | . 84 133 . . . Parts 9 | . 3 6 . . . Haulers Intercepted . | . . . . . . Recyclers Shooed . | . . . . . . Parts Field Recycled . | . . . . . . Retrieved Matter . | . . . . . . Parts Self-Destructed . | . . . . . . Prevented . | . . . . . . Kills | -11 -10 -10 -10 -9 -8 ------- Run | Yrd Mat Min Exi Min Mat Combat Hostiles Destroyed 6 | . 2 4 . . . Guns 6 | . 2 4 . . . Classes Destroyed 2 | . 1 1 . . . Swarmer 2 | . . 2 . . . Grunt 4 | . 2 2 . . . Best Kill Streak 2 | . 2 2 . . . Combat Bots Only 2 | . 2 2 . . . Max Kills in Single Turn 1 | . 1 1 . . . Gunslinging . | . . . . . . Exploded . | . . . . . . Melee . | . . . . . . Uniques/NPCs Destroyed . | . . . . . . Combat | -11 -10 -10 -10 -9 -8 -------- Run | Yrd Mat Min Exi Min Mat Hostile Shots Fired 115 | . 6 37 . 21 51 Missed 27 | . . 7 . 6 14 Damage Taken 1572 | . 67 357 . 678 470 Core 404 | . 12 95 . 118 179 Absorbed by Shields . | . . . . . . Redirected to Shielding 34 | . . 34 . . . Core Remaining (%) 55 | 100 . . . 10 . Volleys Fired 22 | . 9 12 . 1 . Largest 2 | . 2 2 . 2 . Hottest 60 | . 60 60 . 60 . Shots Fired 44 | . 18 24 . 2 . Gun 44 | . 18 24 . 2 . Cannon . | . . . . . . Launcher . | . . . . . . Special . | . . . . . . Kinetic 22 | . 9 12 . 1 . Thermal 22 | . 9 12 . 1 . Explosive . | . . . . . . Electromagnetic . | . . . . . . Robot Hit Streak 13 | . 6 13 . 2 . Robot Miss Streak 5 | . 5 1 . 1 . Penetration Max . | . . . . . . Secondary Targets . | . . . . . . Shots Hit Robots 30 | . 9 20 . 1 . Core Hits 14 | . 6 7 . 1 . Critical Kills . | . . . . . . Critical Parts Destroyed . | . . . . . . Critical Strikes . | . . . . . . Melee Attacks . | . . . . . . Impact . | . . . . . . Slashing . | . . . . . . Piercing . | . . . . . . Sneak Attacks . | . . . . . . Combat Hostiles . | . . . . . . Follow-up Attacks . | . . . . . . Damage Inflicted 353 | . 103 235 . 12 3 Guns 350 | . 103 235 . 12 . Cannons . | . . . . . . Explosions . | . . . . . . Melee . | . . . . . . Ramming 3 | . . . . . 3 Kinetic 209 | . 61 148 . . . Thermal 141 | . 42 87 . 12 . Explosive . | . . . . . . Electromagnetic . | . . . . . . Impact . | . . . . . . Slashing . | . . . . . . Piercing . | . . . . . . Highest Corruption . | . . . . . . Average Corruption . | . . . . . . Corruption Purged . | . . . . . . Corruption Blocked . | . . . . . . Overload Shots . | . . . . . . Overflow Damage . | . . . . . . Projectiles . | . . . . . . Explosions . | . . . . . . Melee . | . . . . . . Knockbacks . | . . . . . . Impact . | . . . . . . Kinetic . | . . . . . . Secondary . | . . . . . . Self-Inflicted Damage . | . . . . . . Shots . | . . . . . . Rammed 1 | . . . . . 1 Targets Rammed 1 | . . . . . 1 Kicked . | . . . . . . Crushed . | . . . . . . Highest Temperature 71 | . 36 71 . . . Average Temperature 30 | . 23 34 . . . Received Heat Transfer 342 | . 36 159 . 12 135 Siege Activations . | . . . . . . Robots Corrupted . | . . . . . . Combat Hostiles . | . . . . . . Parts Fried . | . . . . . . Impact Corruptions . | . . . . . . Robots Melted . | . . . . . . Combat Hostiles . | . . . . . . Parts Melted . | . . . . . . Heat Transferred 325 | . 100 200 . 25 . Parts Sabotaged . | . . . . . . Parts Stolen . | . . . . . . Parts Stripped . | . . . . . . Power Chain Reactions . | . . . . . . Alert | -11 -10 -10 -10 -9 -8 ------- Run | Yrd Mat Min Exi Min Mat Peak Influence 150 | . 116 150 . . . Initial 45 | . . 45 . . . Average 52 | . 45 121 . . . Maximum Alert Level . | . . . . . . Low Security (%) 100 | 100 100 100 . 100 100 Level 1 . | . . . . . . Level 2 . | . . . . . . Level 3 . | . . . . . . Level 4 . | . . . . . . Level 5 . | . . . . . . High Security . | . . . . . . Max Security . | . . . . . . Squads Dispatched 2 | . 2 . . . . Investigation 1 | . 1 . . . . Extermination . | . . . . . . Reinforcement 1 | . 1 . . . . Assault . | . . . . . . Garrison . | . . . . . . Intercept . | . . . . . . Searches Triggered . | . . . . . . Construction Impeded . | . . . . . . Haulers Reinforced . | . . . . . . Active Scanning Responses . | . . . . . . Cargo Convoy Interrupts . | . . . . . . Stealth | -11 -10 -10 -10 -9 -8 --------- Run | Yrd Mat Min Exi Min Mat Distress Signals 1 | . 1 . . . . Communications Jammed . | . . . . . . Distress Signals . | . . . . . . Times Spotted 49 | . 6 5 . 22 16 Peak Tracking Total 15 | . 3 3 . 15 13 Tactical Retreats 3 | . 1 1 . 1 . Traps | -11 -10 -10 -10 -9 -8 ------- Run | Yrd Mat Min Exi Min Mat Traps Triggered 1 | . 1 . . . . Indirectly . | . . . . . . Trap Hack Attempts . | . . . . . . Triggered . | . . . . . . Disarmed . | . . . . . . Reprogrammed . | . . . . . . Reused . | . . . . . . Traps Extracted . | . . . . . . Installed . | . . . . . . Triggered . | . . . . . . Machines | -11 -10 -10 -10 -9 -8 ---------- Run | Yrd Mat Min Exi Min Mat Machines Disabled . | . . . . . . Max in Single Turn . | . . . . . . Machines Repaired . | . . . . . . Machines Dismantled . | . . . . . . Machines Sabotaged . | . . . . . . Overloaded Fab Kills . | . . . . . . Hacking | -11 -10 -10 -10 -9 -8 --------- Run | Yrd Mat Min Exi Min Mat Machines Accessed 10 | . 4 . 5 . 1 Terminals 4 | . 3 . . . 1 Fabricators . | . . . . . . Repair Stations . | . . . . . . Recycling Units 1 | . 1 . . . . Scanalyzers . | . . . . . . Garrison Access . | . . . . . . Total Hacks 59 | . 6 . 50 . 3 Successful 52 | . 2 . 50 . . Failed 7 | . 4 . . . 3 Catastrophic 2 | . 2 . . . . Database Lockouts . | . . . . . . Manual 10 | . 6 . 1 . 3 Terminals 8 | . 5 . . . 3 Fabricators . | . . . . . . Repair Stations . | . . . . . . Recycling Units 1 | . 1 . . . . Scanalyzers . | . . . . . . Garrison Access . | . . . . . . Terminal Hacks 51 | . 1 . 50 . . Record 49 | . . . 49 . . Terminal Index 1 | . 1 . . . . Derelict Proto ID Bank 1 | . . . 1 . . Fabricator Hacks . | . . . . . . Repair Station Hacks . | . . . . . . Recycling Unit Hacks . | . . . . . . Scanalyzer . | . . . . . . Garrison Access Hacks . | . . . . . . Unauthorized Hacks 1 | . 1 . . . . Terminals . | . . . . . . Fabricators . | . . . . . . Repair Stations . | . . . . . . Recycling Units 1 | . 1 . . . . Reject 1 | . 1 . . . . Scanalyzers . | . . . . . . Garrison Access . | . . . . . . Data Cores Recovered . | . . . . . . Used . | . . . . . . Hacking Detections 4 | . 3 . . . 1 Full Trace Events . | . . . . . . Feedback Events . | . . . . . . Feedback Blocked . | . . . . . . Robot Schematics Acquired . | . . . . . . Robots Built . | . . . . . . Authchips . | . . . . . . Time . | . . . . . . Total Robot Build Rating . | . . . . . . Part Schematics Acquired . | . . . . . . Parts Built . | . . . . . . Authchips . | . . . . . . Time . | . . . . . . Total Part Build Rating . | . . . . . . Parts Repaired . | . . . . . . Time . | . . . . . . Parts Recycled . | . . . . . . Recycled Matter . | . . . . . . Retrieved Matter . | . . . . . . Retrieved Components . | . . . . . . Parts Scanalyzed . | . . . . . . Part Schematics Acquired . | . . . . . . Parts Damaged . | . . . . . . Bothacking | -11 -10 -10 -10 -9 -8 ------------ Run | Yrd Mat Min Exi Min Mat Used RIF Installer . | . . . . . . Robots Hacked . | . . . . . . Non-combat . | . . . . . . Combat . | . . . . . . Robot Hacks Applied . | . . . . . . Relay Couplers Released . | . . . . . . Fabnet Peak Effective % . | . . . . . . Robots Rewired . | . . . . . . Allies Hacked . | . . . . . . Hacks Repelled . | . . . . . . Allies | -11 -10 -10 -10 -9 -8 -------- Run | Yrd Mat Min Exi Min Mat Total Allies . | . . . . . . Largest Group . | . . . . . . Highest-Rated Group . | . . . . . . Highest-Rated Ally . | . . . . . . Total Orders . | . . . . . . Ally Attacks . | . . . . . . Total Damage . | . . . . . . Kills . | . . . . . . Allies Corrupted . | . . . . . . Allies Melted . | . . . . . . Intel | -11 -10 -10 -10 -9 -8 ------- Run | Yrd Mat Min Exi Min Mat Robot Analysis Total . | . . . . . . Derelict Logs Recovered . | . . . . . . Drone Launches . | . . . . . . Drone Recoveries . | . . . . . . Exploration | -11 -10 -10 -10 -9 -8 ------------- Run | Yrd Mat Min Exi Min Mat Turns Passed 1466 | 57 262 242 687 47 171 Spaces Moved 1071 | 37 177 161 564 28 104 Core 10 | 10 . . . . . Treads 113 | . 5 4 . . 104 Legs 948 | 27 172 157 564 28 . Wheels . | . . . . . . Hover . | . . . . . . Flight . | . . . . . . Fastest Speed 50 | 50 120 120 120 120 160 Average Speed 124 | 106 121 120 120 152 160 Slowest Speed 190 | 190 160 160 120 190 160 Overloaded Moves . | . . . . . . Propulsion Burnouts . | . . . . . . Robots Hopped . | . . . . . . Cave-ins Triggered . | . . . . . . Exploration Rate (%) 34 | 3 43 36 92 20 13 Regions Visited 5 Branch Regions 3 Pre-discovered Areas 1 | . . . 1 . . Known Exits Taken . | . . . . . . Unknown Exits Taken 5 | 1 1 1 1 1 . Scrap Searched . | . . . . . . Spaces Dug . | . . . . . . Terrain Destroyed . | . . . . . . Melee . | . . . . . . Projectile . | . . . . . . AOE . | . . . . . . Terrain Rammed . | . . . . . . Walls Destroyed . | . . . . . . Machines Disabled . | . . . . . . Actions | -11 -10 -10 -10 -9 -8 --------- Run | Yrd Mat Min Exi Min Mat Total 1154 | 54 205 182 574 31 108 Wait 15 | . 10 4 . 1 . Move 1066 | 36 176 160 563 27 104 Hop . | . . . . . . Pick Up 21 | 12 3 1 5 . . Fast Attach . | . . . . . . Attach 14 | 6 2 1 . 2 3 Detach 1 | . 1 . . . . Swap 10 | . 4 4 2 . . Drop 3 | . . . 3 . . Fire 22 | . 9 12 . 1 . Melee . | . . . . . . Ram . | . . . . . . Kick . | . . . . . . Crush 1 | . . . . . 1 Escape Stasis . | . . . . . . Rewire 1 | . . . 1 . . Trap . | . . . . . . Miscellaneous . | . . . . . . Route ------- -11/Scrapyard -10/Materials -10/Mines (discovered 2 exits: [*Mat] / *Exi) -10/Exiles (discovered 2 exits: [*Min x2]) -9/Mines -8/Materials History --------- Turn | Location | Event 27 | -11/Scrapyard | Discovered new exit (range 14) 58 | -11/Scrapyard | Entered Materials 303 | -10/Materials | Build established: Mutant 309 | -10/Materials | Discovered new exit (range 10) 320 | -10/Materials | Entered Mines 488 | -10/Mines | Discovered new exit (range 14) 557 | -10/Mines | Deemed a non-threat by the Exiles lab entrance 557 | -10/Mines | Discovered new exit (range 5) 562 | -10/Mines | Entered Exiles 598 | -10/Exiles | Discovered new exit (range 14) 614 | -10/Exiles | Met 8R-AWN 633 | -10/Exiles | Met EX-HEX 672 | -10/Exiles | Met EX-BIN 693 | -10/Exiles | Aligned with FarCom system 694 | -10/Exiles | Given EX-Vault access code 734 | -10/Exiles | Opened EX-Vault 763 | -10/Exiles | Found Trap Reconfigurator 791 | -10/Exiles | Warned to stay clear of 0b10 Research branches 876 | -10/Exiles | Met EX-DEC 920 | -10/Exiles | Visited The Gauntlet 1089 | -10/Exiles | Learned location of Zion (-6) 1158 | -10/Exiles | Discovered new exit (range 14) 1249 | -10/Exiles | Left Exiles lab with Trap Reconfigurator 1249 | -10/Exiles | Entered Mines 1250 | -9/Mines | Assembled infested the area 1277 | -9/Mines | Discovered new exit (range 11) 1280 | -9/Mines | Core integrity fell below 50% 1292 | -9/Mines | Core integrity fell below 20% 1296 | -9/Mines | Entered Materials 1296 | -8/Materials | Evolved 4 slots: Power x1, Propulsion x2, Utility x1 1327 | -8/Materials | Lost 5 parts (1p2n2w) 1467 | -8/Materials | Self-destructed Last Messages --------------- 01296_ Receiving FarCom transmissions... 01311_ Connecting with Terminal... 01311_ Current location identified: Materials 01311_ Connecting with Terminal... 01410_ Slammed into B-36 Bruiser. 01429_ K-01 Serf collects debris. 01433_ K-01 Serf cleans the Atomic Centrifuge. 01435_ K-01 Serf collects debris. 01440_ Critical hit (Burn: +37). 01454_ Slug penetrates Wall. 01457_ K-01 Serf cleans the Atomic Centrifuge. 01458_ Slug penetrates Wall. 01458_ Lgt. Treads destroyed. 01461_ C-30 ARC bursts open, deploying its payload. 01461_ S-10 Pest unfolds itself. 01461_ Trap Reconfigurator destroyed. 01463_ K-01 Serf cleans the Atomic Centrifuge. 01466_ Slug penetrates Wall. 01466_ K-01 Serf cleans the Atomic Centrifuge. Map ----- +----------------------------------------------------+ | ?????????????????????????????????????????????????? | | ?????????????????????????????????????????????????? | | ?????????????????????????????????????????????????? | | ?????????????????????????????????????????????????? | | ?????????????????????????????????????????????????? | | ?????????????????????????????????????????????????? | | ?????????????????????????????????????????????????? | | ?????????????????????????????????????????????????? | | ?????????????????????????????????????????????????? | | ?????????????????????????????????????????????????? | | ???????????????????????????Y?????????????????????? | | ?????????????????????????????????????????????????? | | ???????????????????Y?????????????????????????????? | | ?????????????????????????????????????????????????? | | ?????????????????????????????????????????????????? | | ?????????????????????????????????????????????????? | | ?????????????????????????????????????????????????? | | ?????????????????????????????????????????????????? | | ?????????????????????????????????????????????????? | | ?????????????????????????????????????????????????? | | ?????????????????????????????????????????????????? | | ?????????????????????????????????????????????????? | | ?????????????????###########?????????????????????? | | ?????????????????# T #?????????????????????? | | ?????????????????# """ #+#############???????? | | ?????????????????# """ @ # """ """ """ #???????? | | ?????????????????# """ # """ """ """ #???????? | | ?????????????????# k # """ """ """ #?#####?? | | ?????????????????# # #?# !!#?? | | ?????????????????# ss # #?# !!#?? | | ?????????????????# sss # #?# ==#?? | | ?????????????????#####/###########+#####+### ==#?? | | ??????????????????# sbg !!#?? | | ??????????????????# g !!#?? | | ??????????????????# h #####?? | | ??????????????????# %########### ##### ##?????? | | ??????????????????# g??????????# #???# #??????? | | ??????????????????# Y??????????# #???# #??????? | | ??????????????????# ??????????# #???# #??????? | | ??????????????????# ??????????# #####/###????? | | ?????????????????? ??????????+ ## #????? | | ?????????????????## ??????????# ## #????? | | ?????????????????? ??????????# ##""" #????? | | ?????????????????? ???????????# ##""" #????? | | ?????????????????? ???????????# ##""" #????? | | ?????????????????? ??????????## ## #????? | | ???????????????????? ??????????# [ ###+####????? | | ???????????????????????????????# #????? | | ???????????????????????????????# T #????? | | ???????????????????????????????# #????? | +----------------------------------------------------+ Best States ------------- Heat Dissipation 31 Energy Generation 10 Energy Capacity 250 Matter Stores 362 Matter Capacity 400 Sight Range 16 Terrain Scan Density 10 Propulsion Shielding 33 Evasion (%) 55 Recoil Reduction 2 Item Schematics ----------------- None Robot Schematics ------------------ None Fabricated ------------ Nothing Alien Tech Used ----------------- None Achievements -------------- None Challenges ------------ None Game ------ Seed LinearImprinterAutohacker Manual? 0 Play Time 00:23:53 Cumulative 22.2 hours Start 2024.03.22 @ 13:28:48 End 2024.03.22 @ 13:54:43 Sessions 1 Manual Loads 0 Difficulty Rogue Special Mode None Game No. 23 Rogue 23 Adventurer 0 Explorer 0 Win Type - Total 0 Types 0/0/0/0/0/0/0/0/0 Lore% 17 Gallery% 20 Achievement% 19 Wizard Run 0 Options --------- Layout 1 ASCII 0 Keyboard 0 Movement Mouse Keybinds 0 Fullscreen 1 Font 32/SmallcapsGlow Map View 50x40 Zoom Use 0% Tactical HUD 1 Map Filters NONE Filters NONE Steam 1 RUN: 87a229d2-afb1-44a1-bc97-f87891ebd68f